[Event "Baku Open 2024"]
[Site "Baku"]
[Date "2024.07.04"]
[Round "6.38"]
[White "Putrenko, Kirill"]
[Black "Aslanov, Umid"]
[Result "1/2-1/2"]
[ECO "D31"]
[WhiteElo "2349"]
[BlackElo "2216"]
[Annotator "TA"]
[PlyCount "114"]
[EventDate "2024.06.29"]
[EventType "swiss"]
[EventCountry "AZE"]
[SourceTitle "playchess.com"]
[Source "ChessBase"]
[SourceQuality "1"]
[TimeControl "5400+30"]

{[%evp 46,114,72,60,65,69,90,80,147,133,170,160,172,154,154,154,147,154,184,147,262,245,295,305,378,262,323,182,211,207,218,205,205,197,205,182,167,86,94,87,76,58,61,97,266,58,54,0,52,57,52,54,48,0,45,40,47,33,43,21,12,6,17,15,8,0,0,0,0,0,0]} 1. d4 {[%emt 0:00:02]} d5 {[%emt 0:00:04]} 2. c4 {[%emt 0:00:07]} e6 {[%emt 0:00:03]} 3. Nc3 {[%emt 0:00:07]} Be7 {[%emt 0:00:06]} 4. cxd5 {[%emt 0:00:11]} exd5 {[%emt 0:00:03]} 5. Bf4 {[%emt 0:00:10]} c6 {[%emt 0:00:05]} 6. e3 {[%emt 0:00:16]} Bd6 {[%emt 0:00:07]} 7. Bxd6 {[%emt 0:01:42]} Qxd6 {[%emt 0:00:05]} 8. Bd3 {[%emt 0:00:34]} Ne7 {[%emt 0:03:22] D31: Damengambit (Halbslawisch).} 9. Qc2 {[%emt 0:04:55]} Qf6 {[%emt 0:00:04]} 10. Nge2 {[%emt 0:05:15]} Bf5 {[%emt 0:00:07]} 11. O-O $146 {[%emt 0:03:24]} ({Predecessor:} 11. Nf4 Bxd3 12. Qxd3 Nd7 13. O-O a5 14. b3 O-O 15. Rac1 Rfe8 16. Rfd1 Nf8 17. g3 Nfg6 18. Nxg6 Qxg6 19. Qxg6 hxg6 20. h4 Nf5 {½-½ Zanan,E (2486)-Papasimakopoulos,A (2416) Heraklion Tal Memorial 4th 2023 (3)}) 11... Bxd3 {[%emt 0:01:25]} 12. Qxd3 {[%emt 0:00:01]} O-O {[%emt 0:00:20]} 13. f3 {[%emt 0:04:30]} Nd7 {[%emt 0:02:33]} 14. e4 {[%emt 0:02:23]} Qg6 {[%emt 0:02:46]} 15. Rad1 {[%emt 0:07:27]} Rfe8 {[%emt 0:01:32]} 16. Qd2 {[%emt 0:08:22]} Nb6 {[%emt 0:10:18]} 17. b3 {[%emt 0:01:50]} f6 {[%emt 0:04:24]} 18. Nf4 {[%emt 0:03:51]} Qf7 {[%emt 0:03:19]} 19. Nd3 {[%emt 0:05:21]} Ng6 {[%emt 0:03:48]} 20. Rfe1 {[%emt 0:03:49]} Rad8 {[%emt 0:03:17]} 21. Qf2 {[%emt 0:00:49]} Nf8 {[%emt 0:05:31]} 22. e5 {[%emt 0:04:12]} fxe5 {[%emt 0:01:43]} 23. dxe5 {[%emt 0:00:52]} Ne6 {[%emt 0:13:25]} 24. f4 {[%emt 0:00:44]} g6 {[%emt 0:01:59]} 25. g4 {[%emt 0:02:28]} Rf8 {[%emt 0:06:26]} 26. Rf1 $1 {[%emt 0:01:21]} Qe7 {[%emt 0:07:10]} (26... Qg7 $142) 27. f5 $16 {[%emt 0:05:31]} Ng5 {[%emt 0:07:09]} 28. Qg2 {[%emt 0:02:21]} d4 {[%emt 0:02:05]} 29. Ne4 {[%emt 0:03:46]} Nxe4 {[%emt 0:03:42]} 30. Qxe4 {[%emt 0:00:18]} Nd5 {[%emt 0:00:43] [#]} 31. Rde1 $1 {[%emt 0:13:50]} (31. fxg6 Nc3 32. gxh7+ Kh8 $15) (31. Qxd4 Qg5 32. fxg6 (32. Qxa7 $2 Qxg4+ 33. Kh1 Qe4+ 34. Kg1 Ne3 $19) 32... hxg6 $14) 31... Ne3 {[%emt 0:02:06]} 32. Rf3 {[%emt 0:02:07]} Qh4 {[%emt 0:02:35] [#]} (32... Rd5 $16 33. Kh1 (33. fxg6 Rxf3 34. Qxf3 hxg6 $11) 33... Re8 34. fxg6 Qg7 35. gxh7+ (35. Rf6 Rdxe5 36. gxh7+ Kh8 $11) 35... Qxh7 36. Qxh7+ Kxh7 37. Rf7+ Kg6 38. Rxb7 Rdxe5 39. Nxe5+ Rxe5) 33. f6 $1 $18 {[%emt 0:02:38]} (33. fxg6 Rxf3 (33... Qxg4+ 34. Qxg4 Nxg4 35. gxh7+ Kxh7 36. Rh3+ Nh6 37. Re4 $16) 34. Qxf3 hxg6 $17) (33. Rg3 $2 Rxf5 34. e6 Rdf8 35. Rexe3 dxe3 36. Qxe3 Rf1+ 37. Kg2 Ra1 $19) 33... Rde8 {[%emt 0:04:47]} 34. Qxd4 {[%emt 0:06:24]} Nxg4 {[%emt 0:00:08]} 35. Qc4+ {[%emt 0:01:12]} (35. Qxa7 $2 Ra8 $19 (35... Nxh2 $2 36. Qe3 $19) (35... Qxh2+ $2 36. Kf1 $19) (35... Nxh2 $2 36. Qf2 $19) (35... Qxh2+ $2 36. Kf1 $19)) 35... Kh8 {[%emt 0:00:22]} 36. h3 {[%emt 0:00:59]} (36. Re2 $142 Qh5 37. f7 Nxh2 38. Rf4 (38. fxe8=B $2 {geht unter.} Nxf3+ 39. Kf2 Nxe5+ $19) (38. Rxh2 Qxf3 39. e6 Qd1+ 40. Kg2 Qe2+ 41. Kg1 Qd1+ 42. Kg2 Qe2+ 43. Kg1 Qd1+ $11) 38... Nf3+ (38... Qxe2 $2 39. e6 $18) 39. Kf2 (39. Rxf3 Qxf3 40. e6 Rxe6 $14) 39... Nxe5 40. Qc3 (40. fxe8=R Qh2+ 41. Ke1 Qg1+ 42. Kd2 Nxc4+ 43. bxc4 Rxe8 $18) 40... Rxf7 (40... Qh2+ $2 41. Ke1 $18) 41. Rxf7) 36... Rxf6 {[%emt 0:01:20]} 37. exf6 {[%emt 0:02:24]} Rxe1+ {[%emt 0:00:29]} 38. Nxe1 {[%emt 0:00:09]} Qxe1+ {[%emt 0:00:04]} 39. Qf1 {[%emt 0:00:48]} Ne5 {[%emt 0:00:01]} 40. Rf2 {[%emt 0:00:52]} (40. Qxe1 $2 {ist das falsche Schlagen.} Nxf3+ 41. Kf1 Nxe1 42. Kxe1 Kg8 $19) 40... Qe3 {[%emt 0:00:02]} 41. Kh2 {[%emt 0:00:45]} (41. Kg2 $18 Kg8 42. Qe2) 41... Kg8 $16 {[%emt 0:00:49]} 42. Qe2 {[%emt 0:01:22]} Qd4 {[%emt 0:00:16]} 43. f7+ {[%emt 0:00:45]} Kf8 $1 {[%emt 0:00:04]} 44. Kg3 {[%emt 0:00:45]} Qd6 $2 {[%emt 0:00:24]} (44... Qc3+ $16 45. Kg2 Qd4) 45. Kg2 $2 {[%emt 0:00:30]} (45. Qd2 $18 Qxd2 46. Rxd2) 45... Qd5+ $14 {[%emt 0:00:05]} 46. Kh2 {[%emt 0:00:27]} Qd4 $1 {[%emt 0:00:14]} 47. Rf1 {[%emt 0:00:39]} (47. Kg1 {ist vielschichtiger.} c5 48. Kf1 Qd5 49. Qd2) 47... Qd6 $1 {[%emt 0:00:41]} 48. Kg2 {[%emt 0:00:10]} Qd5+ {[%emt 0:00:04]} 49. Kh2 {[%emt 0:00:22]} Qd6 {[%emt 0:00:04]} 50. Kg1 {[%emt 0:00:24]} Nxf7 {[%emt 0:04:23]} 51. Qf2 {[%emt 0:00:22]} Qe6 {[%emt 0:00:12]} 52. Qxa7 {[%emt 0:01:02]} Qxh3 {[%emt 0:00:38]} 53. Qb8+ {[%emt 0:00:31]} Kg7 {[%emt 0:00:03]} 54. Qf4 {[%emt 0:00:21]} Qe6 {[%emt 0:00:03]} 55. Qd4+ {[%emt 0:00:46]} Kg8 {[%emt 0:00:12]} 56. Qf4 {[%emt 0:00:13]} Kg7 {[%emt 0:01:08]} 57. Qd4+ {[%emt 0:00:08]} Kg8 {[%emt 0:00:09]} 1/2-1/2

[Event "Baku Open 2024"]
[Site "Baku"]
[Date "2024.07.04"]
[Round "6.39"]
[White "Javadov, Habil"]
[Black "Raahul V S"]
[Result "1/2-1/2"]
[ECO "D02"]
[WhiteElo "2195"]
[BlackElo "2314"]
[Annotator "TA"]
[PlyCount "100"]
[EventDate "2024.06.29"]
[EventType "swiss"]
[EventCountry "AZE"]
[SourceTitle "playchess.com"]
[Source "ChessBase"]
[SourceQuality "1"]
[TimeControl "5400+30"]

{[%evp 10,100,0,-8,0,-17,8,-1,0,2,13,15,25,13,14,8,13,6,26,25,43,35,55,27,38,37,160,49,45,45,64,72,63,54,61,59,233,122,123,128,137,112,110,118,166,172,161,164,159,163,227,223,236,227,240,237,241,228,253,245,270,193,222,210,214,225,224,202,200,64,72,83,73,55,68,55,63,63,70,75,77,75,80,8,8,0,0,0,0,0,8,8,8]} 1. d4 {[%emt 0:00:41]} Nf6 {[%emt 0:00:14]} 2. Nf3 {[%emt 0:00:09]} d5 {[%emt 0:00:11]} 3. Bf4 {[%emt 0:00:06]} c5 {[%emt 0:00:11]} 4. e3 {[%emt 0:00:05]} Nc6 {[%emt 0:00:05]} 5. c3 {[%emt 0:00:04]} Qb6 {[%emt 0:00:12]} 6. Qc2 {[%emt 0:00:05]} g6 {[%emt 0:00:09]} 7. Nbd2 {[%emt 0:00:10]} Bg7 {[%emt 0:00:07]} 8. h3 {[%emt 0:00:34]} O-O {[%emt 0:00:20]} 9. Be2 {[%emt 0:00:06]} Bd7 {[%emt 0:00:12]} 10. O-O {[%emt 0:00:28]} Rfc8 {[%emt 0:04:22]} 11. Qb3 {[%emt 0:01:43]} c4 {[%emt 0:02:55]} 12. Qxb6 {[%emt 0:04:19]} axb6 {[%emt 0:00:05]} 13. a3 {[%emt 0:02:15]} Ra5 {[%emt 0:09:39]} 14. Rfe1 {[%emt 0:03:40]} Nh5 {[%emt 0:05:04]} 15. Bh2 {[%emt 0:00:27]} f5 {[%emt 0:00:10]} 16. Rad1 {[%emt 0:16:39]} Nf6 {[%emt 0:05:16]} 17. Ne5 {[%emt 0:00:29]} Na7 {[%emt 0:00:51]} (17... Be8 $14) 18. f3 {[%emt 0:07:33] White is more active.} (18. Nxd7 $1 $16 Nxd7 19. e4 fxe4 20. Bg4) 18... Ba4 $14 {[%emt 0:00:55]} 19. Rb1 {[%emt 0:01:12]} Nd7 {[%emt 0:01:03]} 20. Nxd7 {[%emt 0:12:48]} Bxd7 {[%emt 0:00:06]} 21. Bd1 {[%emt 0:00:28]} Re8 {[%emt 0:04:07][%cal Bc8e8,Be8e5,Be5d5][%mdl 32]} 22. e4 {[%emt 0:01:24]} e5 $2 {[%emt 0:23:34]} (22... Bh6 $14 23. Nf1 dxe4) 23. Bxe5 {[%emt 0:02:32]} ({Only move:} 23. exd5 $18 exd4 24. Rxe8+ Bxe8 25. Nxc4) 23... Bxe5 $16 {[%emt 0:04:18]} 24. dxe5 {[%emt 0:00:09]} Rxe5 {[%emt 0:02:23]} 25. Bc2 {[%emt 0:06:05]} fxe4 {[%emt 0:02:20]} 26. fxe4 {[%emt 0:00:07]} Ba4 {[%emt 0:00:13]} (26... Bc6 $16 {was necessary.}) 27. Bxa4 $18 {[%emt 0:01:48]} Rxa4 {[%emt 0:00:05]} 28. exd5 {[%emt 0:00:38]} Rxd5 {[%emt 0:00:05]} 29. Ne4 {[%emt 0:00:46]} Kg7 {[%emt 0:10:38] Prevents Nf6.} (29... Rd8 {is a better defense.} 30. Rbd1 Rd3 31. Rxd3 cxd3) 30. Rbd1 {[%emt 0:00:26]} Raa5 {[%emt 0:00:36][%cal Ba4a5,Ba5c5,Bc5c7][%mdl 32]} 31. Nd6 {[%emt 0:00:21] Repels Nc8} ({Much less strong is} 31. Nd2 $6 Rac5 $14) 31... Rxd1 {[%emt 0:01:32]} 32. Rxd1 {[%emt 0:00:05][%mdl 4096] Endgame. KRN-KRN} Rc5 {[%emt 0:00:02]} 33. Nxb7 {[%emt 0:01:16]} Rc7 {[%emt 0:00:26] Prevents Rd7+} 34. Nd6 {[%emt 0:00:21]} Kf8 {[%emt 0:00:04] Wards off Ne8} 35. a4 {[%emt 0:04:22]} Ke7 {[%emt 0:01:06]} 36. Rd4 {[%emt 0:01:29]} Nc6 {[%emt 0:00:39]} 37. Nb5 {[%emt 0:00:55]} Nxd4 {[%emt 0:00:28]} 38. Nxc7 {[%emt 0:00:05] KN-KN} Ne2+ {[%emt 0:00:11]} 39. Kf1 {[%emt 0:00:56]} (39. Kf2 $18 Nf4 40. Ke3 Nxg2+ 41. Kd4) 39... Nf4 $14 {[%emt 0:00:34] [#]} 40. g3 $1 {[%emt 0:03:48]} Nd3 {[%emt 0:00:40][%cal Oe7d6] White must now prevent ...Kd6!} 41. Nd5+ {[%emt 0:00:23]} Kd6 $1 {[%emt 0:00:06]} 42. Nxb6 {[%emt 0:00:13]} Nxb2 {[%emt 0:00:04]} 43. Ke2 {[%emt 0:00:58]} Kc6 {[%emt 0:00:49]} 44. a5 {[%emt 0:02:44]} Kb5 {[%emt 0:00:04]} 45. Nd7 {[%emt 0:02:11]} Kxa5 {[%emt 0:00:11] [#]} 46. Kd2 {[%emt 0:01:49]} (46. Ke3 $1 $16) 46... Ka4 $1 $11 {[%emt 0:00:04] The position is equal.} 47. Kc2 {[%emt 0:01:08]} Nd3 {[%emt 0:00:12]} 48. Nf8 {[%emt 0:00:58]} Nf2 {[%emt 0:00:14]} 49. h4 {[%emt 0:01:06]} h5 {[%emt 0:00:25]} ({But not} 49... Ne4 $6 50. Nxh7 Nxg3 51. Nf8 $14) 50. Nxg6 {[%emt 0:01:18] Strongly threatening Nf4.} Ne4 {[%emt 0:00:04] Black defended with fortune.   Weighted Error Value: White=0.18 (very precise) /Black=0.23 (precise) .  Loses game:     	---       	Black=1      Mistake:       	White=4     	Black=3      Inaccurate:     	White=1     	---        OK:         	White=19    	Black=15     Best:        	White=3     	Black=2      Strong:       	White=1     	Black=2} 1/2-1/2

[Event "Baku Open 2024"]
[Site "Baku"]
[Date "2024.07.04"]
[Round "6.40"]
[White "Bayramov, Elvin"]
[Black "Aarav Sinha"]
[Result "1/2-1/2"]
[ECO "B22"]
[WhiteElo "2155"]
[BlackElo "2300"]
[Annotator "TA"]
[PlyCount "121"]
[EventDate "2024.06.29"]
[EventType "swiss"]
[EventCountry "AZE"]
[SourceTitle "playchess.com"]
[Source "ChessBase"]
[SourceQuality "1"]
[TimeControl "5400+30"]

{[%evp 16,121,28,16,-6,24,25,-4,-14,0,0,0,0,18,11,8,42,34,65,71,80,81,77,25,17,14,15,-6,-9,-107,-6,-5,31,31,31,13,35,14,87,95,97,31,34,36,82,41,43,14,12,21,12,12,12,0,0,0,0,0,0,0,0,0,0,0,0,0,0,0,0,-8,0,0,0,-8,0,0,0,0,0,0,0,0,0,0,0,-8,-8,-8,-8,-24,-20,-20,-8,-12,-12,-16,-16,-75,-75,-124,-32,-154,-124,-154,-124,-124,-124,-124]} 1. e4 {[%emt 0:05:27]} c5 {[%emt 0:00:07]} 2. c3 {[%emt 0:00:28]} Nf6 {[%emt 0:00:08]} 3. e5 {[%emt 0:00:07]} Nd5 {[%emt 0:00:04]} 4. Bc4 {[%emt 0:00:12][%cal Bf1c4,Bc4b3,Bb3c2][%mdl 32]} Nb6 {[%emt 0:00:34]} 5. Bb3 {[%emt 0:00:03]} c4 {[%emt 0:00:28]} 6. Bc2 {[%emt 0:00:04]} Nc6 {[%emt 0:00:05]} 7. Nf3 {[%emt 0:00:04]} d6 {[%emt 0:00:16]} 8. exd6 {[%emt 0:00:05]} Qxd6 {[%emt 0:00:07]} 9. O-O {[%emt 0:00:05]} Bg4 {[%emt 0:00:04]} 10. Re1 {[%emt 0:00:02] Against Ne5} O-O-O {[%emt 0:02:54]} 11. b3 {[%emt 0:00:19]} Qf6 $1 {[%emt 0:00:56] The position is equal.} 12. Na3 {[%emt 0:05:52]} Bxf3 {[%emt 0:13:50]} 13. Qxf3 {[%emt 0:00:06]} Qxf3 {[%emt 0:00:23]} 14. gxf3 {[%emt 0:00:04]} cxb3 $1 {[%emt 0:01:16]} 15. axb3 {[%emt 0:00:10]} e5 {[%emt 0:01:49]} 16. Be4 {[%emt 0:01:19]} Nd5 {[%emt 0:01:30]} 17. Nc4 {[%emt 0:00:34]} Kb8 {[%emt 0:05:27]} 18. b4 {[%emt 0:04:08]} f6 {[%emt 0:06:20]} 19. Na5 {[%emt 0:13:40]} (19. f4 $16) 19... Nxa5 $11 {[%emt 0:03:03]} 20. bxa5 {[%emt 0:07:44]} g6 $1 {[%emt 0:02:16] [#]} 21. f4 $1 {[%emt 0:14:03]} Nxf4 {[%emt 0:09:43] Threatening ...Nd3.} (21... exf4 $2 {too greedy.} 22. Rb1 $18) 22. Rb1 {[%emt 0:00:19] [#]} (22. d4 $1 $11 Bh6 23. dxe5 fxe5 24. c4) 22... Rd7 {[%emt 0:00:26]} (22... Nd3 $1 $17 {[%cal Rd3e1]} 23. Rxb7+ Kc8) 23. d4 {[%emt 0:00:34] And now Bxf4 would win.} Bd6 {[%emt 0:01:15]} 24. Bxf4 {[%emt 0:05:04]} exf4 {[%emt 0:00:34]} 25. Bd5 {[%emt 0:42:27]} Be7 {[%emt 0:08:03][%cal Oe7d8]} 26. Rb5 {[%emt 0:00:00] Black must now prevent Reb1.} Bd8 {[%emt 0:12:03] [#]} (26... Rhd8 $11 27. Bxb7 Rxb7 28. Rxb7+ Kxb7 29. Rxe7+ Ka6) 27. Reb1 $1 $16 {[%emt 0:00:00] White is much more active.} b6 {[%emt 0:01:52]} 28. axb6 {[%emt 0:00:00]} ({Better is} 28. Bc6 $16 Re7 29. c4) 28... axb6 $14 {[%emt 0:01:05]} 29. c4 {[%emt 0:00:00]} Rf8 {[%emt 0:01:42]} (29... h5 $14 {feels stronger.}) 30. Kg2 {[%emt 0:00:00]} f5 {[%emt 0:00:32]} 31. Kf3 {[%emt 0:00:00][%cal Ob5a5]} g5 {[%emt 0:00:35]} 32. Ra1 {[%emt 0:00:00]} Ra7 {[%emt 0:03:26]} 33. Rxa7 {[%emt 0:00:00]} Kxa7 $11 {[%emt 0:00:04][%mdl 4096] Endgame. KRB-KRB} 34. Rb2 {[%emt 0:00:00]} Kb8 {[%emt 0:04:18]} 35. c5 {[%emt 0:00:00]} Rf6 {[%emt 0:01:00] Inhibits Bc6.} 36. Ra2 {[%emt 0:00:00]} bxc5 {[%emt 0:03:40]} 37. dxc5 {[%emt 0:00:00]} Rh6 {[%emt 0:00:54]} 38. Ra8+ {[%emt 0:00:00]} Kc7 {[%emt 0:00:18]} 39. Ra7+ {[%emt 0:00:00]} Kc8 {[%emt 0:00:27]} 40. Rf7 {[%emt 0:00:00]} Rxh2 {[%emt 0:01:35]} 41. Rxf5 {[%emt 0:00:00]} h5 {[%emt 0:01:41]} 42. Rf7 {[%emt 0:00:00]} Bc7 {[%emt 0:01:50]} 43. Rf8+ {[%emt 0:00:00]} Bd8 {[%emt 0:00:46]} 44. Rf7 {[%emt 0:00:00]} Bc7 {[%emt 0:00:42]} 45. Rf8+ {[%emt 0:00:31]} Kd7 {[%emt 0:00:49]} 46. Rf7+ {[%emt 0:00:05]} Kd8 {[%emt 0:00:40]} 47. Rf8+ {[%emt 0:05:05]} Kd7 {[%emt 0:00:09]} 48. Rf7+ {[%emt 0:00:04]} Kc8 {[%emt 0:00:03]} 49. Rf8+ {[%emt 0:00:07]} Bd8 {[%emt 0:00:04]} 50. Rf7 {[%emt 0:00:04]} g4+ {[%emt 0:01:29]} 51. Kxf4 {[%emt 0:00:06]} Rxf2+ {[%emt 0:00:04]} 52. Kg3 {[%emt 0:04:50]} Rc2 {[%emt 0:00:43]} 53. Rh7 {[%emt 0:00:21]} Rc3+ {[%emt 0:00:31]} 54. Kf2 {[%emt 0:00:18]} g3+ {[%emt 0:00:20]} 55. Kg2 {[%emt 0:00:17]} h4 {[%emt 0:00:15]} 56. Kh3 {[%emt 0:00:34]} (56. c6 $1 $11 {keeps the balance.}) 56... Rxc5 $17 {[%emt 0:00:47]} 57. Bg2 {[%emt 0:00:05]} (57. Be6+ $142 Kb8 58. Rd7) 57... Rb5 {[%emt 0:00:53]} (57... Rc4 $17) 58. Rf7 {[%emt 0:00:50]} ({White should play} 58. Rxh4 $1 $15 Bxh4 59. Kxh4) 58... Rb4 {[%emt 0:00:12]} 59. Rg7 {[%emt 0:00:12]} Rf4 {[%emt 0:00:18]} 60. Bb7+ {[%emt 0:00:14]} Kb8 {[%emt 0:00:04]} 61. Bg2 {[%emt 0:00:05] Weighted Error Value: White=0.16 (very precise) /Black=0.13 (very precise) .  Mistake:       	White=6     	Black=4      Inaccurate:     	White=3     	Black=3      OK:         	White=18    	Black=19     Best:        	White=1     	Black=1      Strong:       	White=1     	Black=3} 1/2-1/2

[Event "Baku Open 2024"]
[Site "Baku"]
[Date "2024.07.04"]
[Round "6.41"]
[White "Dolgun, Can"]
[Black "Ismayil, Malak"]
[Result "0-1"]
[ECO "C69"]
[WhiteElo "2264"]
[BlackElo "2165"]
[Annotator "TA"]
[PlyCount "76"]
[EventDate "2024.06.29"]
[EventType "swiss"]
[EventCountry "AZE"]
[SourceTitle "playchess.com"]
[Source "ChessBase"]
[SourceQuality "1"]
[TimeControl "5400+30"]

{[%evp 14,76,10,8,44,23,42,-4,-4,-13,39,31,50,0,0,0,5,0,0,0,2,-43,-49,-76,-30,-29,-22,-163,-163,-358,-351,-363,-359,-334,-254,-372,-368,-362,-373,-352,-371,-378,-362,-418,-404,-566,-523,-756,-732,-939,-1018,-1047,-1136,-1160,-1202,-1938,-1873,-29980,-2064,-29984,-29985,-29987,-29988,-29990,-29991]} 1. e4 {[%emt 0:00:01]} e5 {[%emt 0:00:04]} 2. Nf3 {[%emt 0:00:04]} Nc6 {[%emt 0:00:04]} 3. Bb5 {[%emt 0:00:03]} a6 {[%emt 0:00:03]} 4. Bxc6 {[%emt 0:00:04]} dxc6 {[%emt 0:00:03]} 5. O-O {[%emt 0:00:05]} f6 {[%emt 0:02:50]} 6. d4 {[%emt 0:00:04]} exd4 {[%emt 0:00:05]} 7. Nxd4 {[%emt 0:00:04]} c5 {[%emt 0:01:13]} 8. Ne2 {[%emt 0:00:05]} Bg4 {[%emt 0:11:58] [#] ...Qxd1 would now be deadly.} 9. f3 {[%emt 0:01:00]} Be6 {[%emt 0:00:49]} 10. Nf4 {[%emt 0:03:32]} (10. Qe1 $14 {was preferrable.}) 10... Bc4 $11 {[%emt 0:02:02] The position is equal.} 11. Re1 {[%emt 0:06:37]} Bd6 {[%emt 0:06:35]} (11... Qxd1 $11 12. Rxd1 Bd6) 12. Na3 $14 {[%emt 0:02:01]} Bf7 {[%emt 0:01:06]} 13. Nd5 {[%emt 0:03:45]} (13. Qe2 $14) 13... b5 $11 {[%emt 0:13:09]} 14. Bf4 {[%emt 0:07:35]} Ne7 {[%emt 0:02:15]} 15. Bxd6 {[%emt 0:10:30]} Qxd6 {[%emt 0:07:30]} 16. c4 {[%emt 0:01:49]} c6 {[%emt 0:05:11]} 17. e5 {[%emt 1:01:41]} fxe5 {[%emt 0:01:17]} 18. Nb6 {[%emt 0:00:00][%csl LRa8,LRd6]} Qxd1 {[%emt 0:03:26]} (18... Rd8 $17 {And now ...Qb8 would win.} 19. Qxd6 Rxd6) 19. Raxd1 {[%emt 0:00:00]} Rd8 {[%emt 0:00:41]} 20. Rxd8+ {[%emt 0:00:00] White does not recover from this.} (20. Nb1 $11 {and White has nothing to worry.}) 20... Kxd8 $19 {[%emt 0:00:03]} 21. Rd1+ $2 {[%emt 0:00:00] [#]} (21. Rxe5 Re8 22. cxb5 axb5 23. Nxb5 cxb5 24. Rxc5) 21... Kc7 {[%emt 0:03:02]} 22. Rd7+ {[%emt 0:00:00]} Kxb6 {[%emt 0:00:06]} 23. Rxe7 {[%emt 0:00:00][%mdl 4096] Endgame. KRB-KRN} Rf8 {[%emt 0:03:32]} (23... Bxc4 24. Nxc4+ bxc4 25. Kf1 $17) 24. Rxe5 {[%emt 0:00:00]} (24. h4 {might work better.}) 24... b4 {[%emt 0:05:57]} ({Inferior is} 24... bxc4 25. Rf5 c3 26. bxc3 $16 (26. Nc4+ $2 Bxc4 27. Rxf8 c2 $19)) ({Not} 24... Bxc4 25. Nxc4+ bxc4 26. Kf1 $17) 25. Nc2 {[%emt 0:00:00]} Bxc4 {[%emt 0:00:07]} 26. b3 {[%emt 0:00:00]} Bg8 {[%emt 0:03:46]} 27. Kf2 {[%emt 0:00:00]} a5 {[%emt 0:00:51]} 28. Ke1 {[%emt 0:00:00]} Rd8 {[%emt 0:07:16]} 29. Re2 {[%emt 0:00:00]} (29. h4 {was worth a try.}) 29... c4 {[%emt 0:01:56]} 30. Re3 {[%emt 0:00:00]} c5 {[%emt 0:02:03] Hoping for ...c3.} 31. f4 {[%emt 0:00:00]} c3 {[%emt 0:03:53]} 32. f5 {[%emt 0:00:00]} c4 {[%emt 0:01:59]} 33. bxc4 {[%emt 0:00:00]} Bxc4 {[%emt 0:00:04]} 34. a4 {[%emt 0:00:00]} Bb3 {[%emt 0:01:25][%csl LRa4,LRc2]} 35. Re2 {[%emt 0:00:00]} Bxc2 {[%emt 0:00:26]} 36. Rxc2 {[%emt 0:00:00]} Kc5 {[%emt 0:00:02] Black mates.} 37. g4 {[%emt 0:00:00]} Kc4 {[%emt 0:00:10]} 38. g5 {[%emt 0:00:00]} b3 {[%emt 0:00:03] Weighted Error Value: White=0.82/Black=0.11 (very precise) .  Mistake:       	White=6     	Black=2      Inaccurate:     	White=3     	---        OK:         	White=7     	Black=11     Best:        	---       	Black=3} 0-1

[Event "Baku Open 2024"]
[Site "Baku"]
[Date "2024.07.04"]
[Round "6.42"]
[White "Avinash Ramesh"]
[Black "Prokhorov, Aleksey"]
[Result "1/2-1/2"]
[ECO "B23"]
[WhiteElo "2252"]
[BlackElo "2161"]
[Annotator "TA"]
[PlyCount "46"]
[EventDate "2024.06.29"]
[EventType "swiss"]
[EventCountry "AZE"]
[SourceTitle "playchess.com"]
[Source "ChessBase"]
[SourceQuality "1"]
[TimeControl "5400+30"]

{[%evp 9,45,-3,-4,-16,-18,-31,0,-10,-4,-56,-54,-45,-39,-44,-52,-45,-55,-89,-86,-240,-252,-315,-277,-292,-310,-389,-118,-129,-138,-139,-129,-145,-144,-135,-135,-134,-142,-109]} 1. e4 {[%emt 0:04:54]} c5 {[%emt 0:00:33]} 2. Nc3 {[%emt 0:00:03]} d6 {[%emt 0:01:40]} 3. d4 {[%emt 0:00:05]} cxd4 {[%emt 0:00:44]} 4. Qxd4 {[%emt 0:00:05]} Nf6 {[%emt 0:02:59]} 5. b3 {[%emt 0:00:27]} e5 {[%emt 0:03:16]} 6. Qd3 {[%emt 0:01:12]} Be7 {[%emt 0:00:56]} 7. Bb2 {[%emt 0:00:04]} Nbd7 {[%emt 0:02:07]} 8. O-O-O {[%emt 0:00:46] The position is equal.} Nc5 {[%emt 0:00:23]} 9. Qe2 {[%emt 0:00:23]} (9. Qe3 $11) 9... a6 {[%emt 0:01:50]} 10. f4 {[%emt 0:02:25] Black must now prevent fxe5.} Qc7 $1 {[%emt 0:07:55]} 11. fxe5 {[%emt 0:05:47]} dxe5 {[%emt 0:00:05]} 12. Nf3 {[%emt 0:00:06]} O-O {[%emt 0:01:51]} 13. h3 {[%emt 0:12:02]} b5 {[%emt 0:07:39]} 14. g4 $2 {[%emt 0:07:03]} (14. Kb1 $17) 14... Bb7 $19 {[%emt 0:03:09][%cal Rc5e4]} 15. Nd5 {[%emt 0:02:41]} Nxd5 {[%emt 0:01:17]} 16. exd5 {[%emt 0:00:04]} e4 {[%emt 0:00:28]} 17. Ne5 {[%emt 0:02:57]} Bd6 $2 {[%emt 0:03:11]} (17... Rfd8 $19 18. c4 Bd6) 18. Nc6 $17 {[%emt 0:00:18]} Bxc6 {[%emt 0:01:00]} 19. dxc6 {[%emt 0:00:01]} Qxc6 {[%emt 0:00:29] aiming for ...Nd3+.} 20. Bg2 {[%emt 0:01:10]} Rfe8 {[%emt 0:08:41]} 21. Qd2 {[%emt 0:06:04]} Rad8 {[%emt 0:07:11]} 22. Kb1 {[%emt 0:02:56] [#]} Ne6 $1 {[%emt 0:03:56]} 23. Rhf1 {[%emt 0:07:49] [#]} Be5 $1 {[%emt 0:21:26][%mdl 512] Weighted Error Value: White=0.26 (precise) /Black=0.20 (precise) .  Missed win:     	---       	Black=1      Mistake:       	White=2     	---        Inaccurate:     	White=1     	Black=1      OK:         	White=5     	Black=6      Best:        	White=1     	Black=2      Strong:       	---       	Black=2} 1/2-1/2